bitfinex-derivatives/quotes_SOLF0:USTF0_20260117
["timestamp","ask_amount","ask_price","bid_price","bid_amount"]
[1768628657820,0.78273913,144.25,144.19,9.23892479]
[1768628658011,0.78273913,144.23,144.17,16.00561461]
[1768628658316,0.78273913,144.23,144.17,2.99472479]
[1768628658817,0.78273913,144.23,144.17,9.23982479]
[1768628659316,0.05151478,144.21,144.17,9.23982479]
[1768628661713,0.05151478,144.21,144.18,6.2449]
[1768628667227,0.05151478,144.21,144.18,9.39614648]
[1768628668929,0.05151478,144.21,144.18,3.15124648]
[1768628676242,6.2424,144.24,144.18,3.15124648]
[1768628676442,6.2424,144.24,144.18,3.19640077]
[1768628682947,6.2428,144.23,144.18,3.19640077]
[1768628700260,7.07795299,144.23,144.18,3.19640077]
[1768628704962,0.83515299,144.23,144.18,3.19640077]
[1768628732694,6.2425,144.24,144.18,3.19640077]
[1768628741402,2.55859898,144.25,144.18,3.19640077]
[1768628742803,8.80059898,144.25,144.18,3.19640077]
[1768628743903,8.80059898,144.25,144.19,3.25452503]
[1768628757710,7.07652591,144.24,144.19,3.25452503]
[1768628758507,7.07652591,144.24,144.18,0.04515429]
[1768628761119,6.2428,144.23,144.18,0.04515429]
[1768628761312,0.83412591,144.24,144.18,0.04515429]
[1768628763417,7.07652591,144.24,144.18,0.04515429]
[1768628765012,0.83412591,144.22,144.18,0.04515429]
[1768628765211,0.83412591,144.22,144.15,16.26750629]
[1768628765920,0.83412591,144.22,144.15,3.25661647]
[1768628766718,0.04964768,144.2,144.15,3.25661647]
[1768628767421,0.04964768,144.2,144.15,9.50281647]
[1768628773932,0.04964768,144.2,144.15,3.25661647]
[1768628774233,0.88377359,144.2,144.15,3.25661647]
[1768628784234,0.04964768,144.2,144.15,3.25661647]
[1768628784433,0.04964768,144.2,144.16,3.07741028]
[1768628785840,0.04964768,144.2,144.17,3.07741028]
[1768628786537,0.00449339,144.2,144.17,3.07741028]
[1768628788038,0.00449339,144.2,144.17,3.12956085]
[1768628799348,0.00449339,144.2,144.18,3.22121626]
[1768628833582,0.00449339,144.2,144.19,262.22]
[1768628843789,0.00449339,144.2,144.18,3.22121626]
[1768628843991,0.00449339,144.2,144.19,262.22]
[1768628862013,0.00449339,144.2,144.18,3.22121626]
[1768628862213,0.00449339,144.2,144.19,262.22]
[1768628881734,0.00449339,144.2,144.18,3.22121626]
[1768628881931,0.00449339,144.2,144.19,262.22]
[1768628883127,0.00449339,144.2,144.18,3.22121626]
[1768628883335,0.00449339,144.2,144.19,262.22]
[1768628909758,0.00449339,144.2,144.19,265.51506345]
[1768628913769,0.83434132,144.19,144.15,13.01088982]
[1768628914065,0.83434132,144.19,144.13,262.22]
[1768628914366,0.83434132,144.19,144.14,216.48]
[1768628914757,6.2455,144.17,144.14,216.48]
[1768628916866,6.2455,144.17,144.07,1.20728534]
[1768628916867,100.43777636,144.16,144.07,1.20728534]
[1768628917062,102.16214396,144.16,144.08,262.24]
[1768628917768,6.29281731,144.13,144.08,262.24]
[1768628917968,0.04551731,144.13,144.08,262.24]
[1768628918760,0.04551731,144.13,144.09,3.15927266]
[1768628923072,6.2456,144.17,144.1,3.20640799]
[1768628924073,9.52407636,144.17,144.1,3.20640799]
[1768628928273,6.2456,144.17,144.1,3.20640799]
[1768628930683,7.9699676,144.17,144.1,3.20640799]
[1768628932285,2.98428517,144.16,144.1,3.20640799]
[1768628932486,2.98428517,144.16,144.1,265.54640799]
[1768628933785,6.2464,144.15,144.1,265.54640799]
[1768628935480,6.2464,144.15,144.1,3.20640799]
[1768628935681,2.98428517,144.16,144.11,262.34]
[1768628937086,2.98428517,144.16,144.1,3.20640799]
[1768628937280,2.98428517,144.16,144.11,262.34]
[1768628937480,9.23038517,144.16,144.11,262.34]
[1768628940287,6.2467,144.14,144.1,3.20640799]
[1768628941388,9.23048517,144.16,144.1,3.20640799]
[1768628941789,2.98428517,144.15,144.1,3.20640799]
[1768628942689,9.23078517,144.15,144.1,265.56640799]
[1768628944089,9.23078517,144.15,144.1,3.20640799]
[1768628944291,9.23078517,144.15,144.1,265.56640799]
[1768628951388,6.2465,144.15,144.1,265.56640799]
[1768628951591,6.2465,144.15,144.11,3.17675137]
[1768628954897,6.2469,144.14,144.1,0.04713533]
[1768628955090,4.70865277,144.15,144.09,265.55675137]
[1768628955497,0.0470098,144.13,144.09,265.55675137]
[1768628955794,6.2944098,144.13,144.09,265.55675137]
[1768628961798,6.2944098,144.13,144.09,3.17675137]
[1768628962103,6.2944098,144.13,144.1,262.38]
[1768628963001,0.0470098,144.13,144.1,262.38]
[1768628968307,0.0470098,144.13,144.1,265.3720927]
[1768628968607,6.2476,144.12,144.09,262.4]
[1768628972412,6.2476,144.12,144.08,2.9920927]
[1768628972711,6.2476,144.12,144.09,262.4]
[1768628974421,6.248,144.11,144.06,3.26173385]
[1768628974615,6.248,144.11,144.07,262.4]
[1768628975214,6.248,144.11,144.07,265.66173385]
[1768628975408,0.04785278,144.1,144.07,265.66173385]
[1768628975718,0.04785278,144.1,144.07,3.26173385]
[1768628976019,0.04785278,144.1,144.08,262.4]
[1768628979715,6.248,144.11,144.08,262.4]
[1768628980116,6.248,144.11,144.08,262.44508973]
[1768628981819,9.45229967,144.13,144.08,262.44508973]
[1768628982817,3.20479967,144.14,144.08,0.04508973]
[1768628983019,3.20479967,144.14,144.09,262.42]
[1768628983623,6.2478,144.12,144.09,262.42]
[1768628988425,6.247,144.14,144.1,3.385e-05]
[1768628989221,6.2472,144.13,144.1,3.385e-05]
[1768628990627,6.2472,144.13,144.1,0.04647067]
[1768628991221,6.2472,144.13,144.11,2.76477927]
[1768628991427,102.08641591,144.17,144.12,262.42]
[1768628992321,3.13471129,144.14,144.06,12.93720495]
[1768628992524,3.13471129,144.14,144.07,262.42]
[1768628993630,6.2477,144.12,144.07,262.42]
[1768628993930,6.29458215,144.12,144.07,262.42]
[1768628995630,6.29458215,144.12,144.06,1.72691624]
[1768628995824,6.2481,144.11,144.07,262.4]
[1768628997926,0.04688215,144.12,144.07,262.4]
[1768628999032,6.29448215,144.12,144.07,262.4]
[1768629001635,3.13471129,144.11,144.05,12.93720495]
[1768629001938,3.13471129,144.1,144.06,262.42]
[1768629003034,0.04656449,144.09,144.06,262.42]
[1768629003636,0.04656449,144.09,144.02,98.07986695]
[1768629003834,6.29556449,144.09,144.03,262.42]
[1768629011642,9.43027578,144.09,143.99,6.2529]
[1768629011844,9.43027578,144.09,144.0,264.18691624]
[1768629012144,9.38371129,144.09,144.0,264.18691624]
[1768629012341,1.72691624,144.07,143.99,12.93720495]
[1768629012541,3.18225307,144.06,144.01,262.46]
[1768629012737,3.18225307,144.06,143.97,118.92885056]
[1768629012738,3.18225307,144.06,144.02,262.46]
[1768629013344,3.13471129,144.06,144.02,262.46]
[1768629013645,0.04555977,144.05,144.02,262.46]
[1768629019843,9.38401129,144.08,144.02,262.50558047]
[1768629025954,6.2493,144.08,144.02,262.50558047]
[1768629032360,9.27646206,144.1,144.02,268.75738047]
[1768629033966,9.27646206,144.1,144.02,270.48558898]
[1768629037862,9.27646206,144.1,144.03,6.2514]
[1768629038962,3.02776206,144.1,144.03,6.2514]
[1768629039157,3.02776206,144.1,144.05,0.04423695]
[1768629056671,3.02776206,144.1,144.05,6.29463695]
[1768629059978,3.11499888,144.12,144.05,6.29463695]
[1768629065979,3.11499888,144.11,144.05,6.29463695]
[1768629080792,3.11499888,144.08,144.03,9.45146157]
[1768629080992,3.11499888,144.08,144.01,262.46]
[1768629081794,3.11499888,144.08,144.01,268.7121]
[1768629082188,0.04627697,144.06,144.01,268.7121]
[1768629086498,0.04627697,144.06,144.02,6.2518]
[1768629086705,4.90573066,144.09,144.02,6.2518]
[1768629086897,4.90573066,144.09,144.03,262.48]
[1768629088101,4.90573066,144.09,144.05,0.04868309]
[1768629091404,3.17752215,144.09,144.05,0.04868309]
[1768629097310,9.42642215,144.09,144.05,0.04868309]
[1768629097911,3.20827902,144.08,144.05,0.04868309]
[1768629103518,3.20827902,144.1,144.05,0.04868309]
[1768629104618,9.45677902,144.1,144.05,0.04868309]
[1768629105118,9.45717902,144.09,144.05,0.04868309]
[1768629115020,9.40092282,144.08,144.05,0.04868309]
[1768629115418,9.40092282,144.08,144.01,14.7175362]
[1768629115727,3.15152282,144.07,144.02,262.5]
[1768629116023,3.15152282,144.07,144.01,1.72835672]
[1768629116321,3.15152282,144.07,144.02,262.5]
[1768629118721,3.15152282,144.07,144.03,262.5]
[1768629119720,0.0470031,144.06,144.03,262.5]
[1768629120624,0.0470031,144.06,144.01,14.7175362]
[1768629120820,3.19852592,144.06,143.99,20.9703362]
[1768629121028,3.19852592,144.06,144.0,262.5]
[1768629121620,3.15152282,144.05,144.0,262.5]
[1768629122021,3.15152282,144.05,143.97,105.99164561]
[1768629122220,3.15152282,144.05,143.98,264.22835672]
[1768629122620,3.15152282,144.05,143.98,1.72835672]
[1768629122821,9.40222282,144.05,143.99,262.5]
[1768629123025,0.04765113,144.03,143.99,262.5]
[1768629125226,0.04765113,144.03,143.98,1.72835672]
[1768629125425,0.04765113,144.03,143.99,262.5]
[1768629125925,0.04765113,144.03,143.98,1.72835672]
[1768629126126,0.04765113,144.03,143.99,262.5]
[1768629126828,0.04765113,144.03,143.98,1.72835672]
[1768629127026,0.04765113,144.03,143.99,262.52]
[1768629127221,0.04765113,144.03,143.98,1.72835672]
[1768629127527,0.04765113,144.03,144.0,262.52]
[1768629127825,0.04765113,144.03,144.01,262.52]
[1768629129531,0.04765113,144.03,143.98,1.72835672]
[1768629129732,0.04765113,144.03,144.01,262.52]
[1768629133632,3.19917395,144.03,144.01,242.35698983]
[1768629138334,3.19917395,144.03,143.96,7.98275672]
[1768629138637,3.19917395,144.03,143.99,262.54]
[1768629139635,3.19917395,144.03,143.96,7.98275672]
[1768629139838,3.19917395,144.03,143.97,262.54]
[1768629140636,3.19917395,144.03,143.96,7.98275672]
[1768629140836,3.19917395,144.03,143.97,262.54]
[1768629141140,3.19917395,144.03,143.96,7.98275672]
[1768629141841,3.19917395,144.03,143.97,262.54]
[1768629144940,3.19917395,144.03,143.96,7.98275672]
[1768629145140,3.19917395,144.03,143.97,262.56]
[1768629146036,9.45077395,144.03,143.96,7.98275672]
[1768629146245,9.45077395,144.03,143.97,262.56]
[1768629164244,9.45077395,144.03,143.97,275.54917948]
[1768629167048,9.45077395,144.03,143.97,12.98917948]
[1768629167049,6.29925113,144.03,143.97,12.98917948]
[1768629167247,6.29925113,144.03,143.98,262.56]
[1768629172447,6.2519,144.02,143.94,20.97359181]
[1768629172650,9.34877716,144.02,143.95,262.56]
[1768629173454,0.04918804,144.0,143.95,262.56]
[1768629182853,0.04918804,144.0,143.95,268.8149]
[1768629185166,0.04918804,144.0,143.95,281.80407948]
[1768629185366,0.04918804,144.0,143.95,268.8149]
[1768629187173,0.04918804,144.0,143.95,6.2549]
[1768629187374,0.04918804,144.0,143.96,262.58]
[1768629193665,0.04918804,144.0,143.94,12.98917948]
[1768629193666,3.1460652,144.0,143.94,12.98917948]
[1768629193874,3.1460652,144.0,143.95,262.6]
[1768629200678,3.1460652,144.0,143.94,6.2553]
[1768629201280,3.1460652,144.0,143.95,262.62]
[1768629207185,0.04918804,144.0,143.95,262.62]
[1768629211485,0.04918804,144.0,143.95,264.34931233]
[1768629211876,0.04918804,144.0,143.95,270.60421233]
[1768629213291,0.04918804,144.0,143.95,268.8749]
[1768629222196,0.04918804,144.0,143.94,14.71874925]
[1768629222397,0.04918804,144.0,143.95,262.62]
[1768629226807,0.04918804,144.0,143.95,268.8749]
[1768629232310,0.04918804,144.0,143.95,6.2549]
[1768629232517,0.04918804,144.0,143.96,262.62]
[1768629232911,0.04918804,144.0,143.95,6.2549]
[1768629233210,0.04918804,144.0,143.96,262.62]
[1768629249531,0.04918804,144.0,143.93,146.17661614]
[1768629249732,0.04918804,144.0,143.94,262.62]
[1768629252830,0.04918804,144.0,143.94,275.60917948]
[1768629253030,0.04918804,144.0,143.94,281.86447948]
[1768629258936,0.04918804,144.0,143.95,6.2549]
[1768629269642,9.46949507,144.03,143.95,1.72956977]
[1768629269643,3.21799507,144.03,143.95,1.72956977]
[1768629269832,3.21799507,144.03,143.96,0.04568351]
[1768629270841,3.21799507,144.03,143.97,6.254]
[1768629271034,3.21799507,144.03,143.98,262.62]
[1768629271942,3.21799507,144.03,143.99,0.04762815]
[1768629275042,3.11398937,144.02,143.95,6.2546]
[1768629275243,3.11398937,144.02,143.96,262.62]
[1768629275543,3.16054174,144.02,143.96,262.62]
[1768629279948,9.41264174,144.02,143.96,262.62]
[1768629281344,6.2524,144.01,143.94,12.98917948]
[1768629281646,6.2524,144.01,143.96,262.62]
[1768629282247,0.04764124,144.0,143.96,262.62]
[1768629301467,0.04764124,144.0,143.94,12.98917948]
[1768629301656,0.04764124,144.0,143.95,262.62]
[1768629309070,0.04764124,144.0,143.93,22.58154428]
[1768629309266,0.04764124,144.0,143.94,262.62]
[1768629313469,0.04764124,144.0,143.95,6.2548]
[1768629334291,0.04764124,144.0,143.95,268.8748]
[1768629334993,0.04764124,144.0,143.95,6.2548]
[1768629335294,0.04764124,144.0,143.95,268.8748]
[1768629335593,0.04764124,144.0,143.95,6.2548]
[1768629335793,0.04764124,144.0,143.95,268.8748]
[1768629338298,0.04764124,144.0,143.95,6.2548]
[1768629338500,0.04764124,144.0,143.96,262.64]
[1768629339890,0.04764124,144.0,143.95,6.2548]
[1768629340205,0.04764124,144.0,143.96,262.64]
[1768629359227,6.2519,144.03,143.96,262.64]
[1768629359414,6.2519,144.03,143.97,0.04489713]
[1768629359818,9.30172902,144.03,143.97,0.04489713]
[1768629360523,6.252,144.02,143.97,0.04489713]
[1768629362423,9.30182902,144.02,143.97,0.04489713]
[1768629366132,9.30232902,144.01,143.97,0.04489713]
[1768629366828,3.04982902,143.99,143.93,16.32594428]
[1768629367537,6.2539,143.98,143.93,16.32594428]
[1768629368440,0.04547532,143.97,143.93,16.32594428]
[1768629369441,0.04547532,143.97,143.93,278.94594428]
[1768629421579,0.04547532,143.97,143.93,16.32594428]
[1768629421784,0.04547532,143.97,143.94,262.66]
[1768629429195,6.2537,143.98,143.94,262.66]
[1768629430796,6.2537,143.98,143.95,0.04689123]
[1768629446507,3.27384225,143.99,143.95,0.04689123]
[1768629460618,9.52724225,143.99,143.95,0.04689123]
[1768629460821,3.1394757,143.98,143.95,0.04689123]
[1768629464021,3.1394757,144.0,143.95,0.04689123]
[1768629473029,3.1394757,144.0,143.95,6.30179123]
[1768629481822,3.1394757,144.0,143.96,262.64]
[1768629513562,3.1394757,144.0,143.95,0.04689123]
[1768629513762,3.1394757,144.0,143.97,262.64]
[1768629514257,6.2524,144.01,143.97,262.64]
[1768629520172,9.4366955,144.01,143.95,0.04689123]
[1768629520368,3.1842955,144.0,143.96,251.7584]
[1768629520670,3.1842955,144.0,143.95,0.04689123]
[1768629521873,6.2532,143.99,143.95,0.04689123]
[1768629525073,6.2542,143.97,143.93,16.32594428]
[1768629548991,97.2632,144.01,143.95,1.7305089]
[1768629548992,6.2527,144.01,143.95,1.7305089]
[1768629549179,3.21722188,144.01,143.94,1.78165147]
[1768629550788,9.46962188,144.01,143.94,1.78165147]
[1768629555493,9.46962188,144.01,143.94,0.05114257]
[1768629563498,3.21649283,144.0,143.94,0.05114257]
[1768629565097,3.21649283,144.0,143.95,262.66]
[1768629585206,9.46929283,144.0,143.95,262.66]
[1768629593711,6.2528,144.0,143.95,262.66]
[1768629599017,6.2528,144.0,143.94,0.05114257]
[1768629599219,6.2528,144.0,143.95,262.64]
[1768629600522,9.23575905,144.0,143.95,262.64]
[1768629601021,9.23575905,144.0,143.94,0.05114257]
[1768629601223,9.23575905,144.0,143.95,262.64]
[1768629602024,2.98295905,143.99,143.94,0.05114257]
[1768629602323,9.23625905,143.99,143.94,262.69114257]
[1768629608532,9.23625905,143.99,143.94,0.05114257]
[1768629608836,9.23625905,143.99,143.94,262.71114257]
[1768629609232,9.23625905,143.99,143.94,0.05114257]
[1768629609430,9.23625905,143.99,143.94,262.71114257]
[1768629609934,9.23675905,143.98,143.94,0.05114257]
[1768629617945,6.2538,143.98,143.94,0.05114257]
[1768629618845,10.96637224,144.0,143.94,0.05114257]
[1768629619040,9.23605905,144.0,143.94,0.05114257]
[1768629620944,6.2533,143.99,143.94,0.05114257]
[1768629626548,9.28509692,143.99,143.94,0.05114257]
[1768629635058,3.03179692,143.99,143.94,0.05114257]
[1768629650076,2.98934828,144.03,143.95,1.73044044]
[1768629650972,2.98934828,144.03,143.98,0.04647314]
[1768629651172,2.98934828,144.03,143.98,262.70647314]
[1768629651770,2.98934828,144.03,143.98,268.95997314]
[1768629660264,2.98934828,144.03,143.98,6.29997314]
[1768629660468,2.98934828,144.03,143.99,262.6]
[1768629662067,3.18355682,144.05,143.99,262.6]
[1768629662976,3.18355682,144.05,144.01,0.05130328]
[1768629684993,5.00582467,144.03,143.97,268.8137]
[1768629685194,3.27538423,144.03,143.97,268.8137]
[1768629686496,0.0474559,144.01,143.97,268.8137]
[1768629687397,0.0474559,144.01,143.97,272.08957113]
[1768629689498,3.27538423,144.03,143.97,272.08957113]
[1768629689700,3.27538423,144.03,143.98,0.04385354]
[1768629698505,3.27538423,144.03,143.98,3.20310038]
[1768629700510,6.2511,144.04,143.98,3.20310038]
[1768629700708,3.2246473,144.05,143.98,3.20310038]
[1768629702610,3.2246473,144.05,144.0,3.15924684]
[1768629703513,3.2246473,144.05,144.01,0.04990855]
[1768629715120,6.2494,144.08,144.01,0.04990855]
[1768629715321,3.03209245,144.07,144.01,0.04990855]
[1768629715918,3.03209245,144.07,144.01,6.30210855]
[1768629719625,3.03209245,144.07,144.01,0.04990855]
[1768629720827,4.76070111,144.06,144.01,0.04990855]
[1768629721127,3.03209245,144.05,144.01,0.04990855]
[1768629742049,9.28269245,144.05,143.98,22.31130534]
[1768629742254,3.26838622,144.04,143.98,281.78277948]
[1768629742648,3.32165237,144.04,143.98,281.78277948]
[1768629742851,3.32165237,144.04,143.98,268.7936]
[1768629748157,3.32165237,144.04,143.98,271.8018756]
[1768629749261,3.32165237,144.04,143.98,3.0082756]
[1768629749462,3.32165237,144.04,143.98,265.5482756]
[1768629760567,3.32165237,144.04,143.99,3.01635816]
[1768629786984,3.32165237,144.04,143.96,285.04214024]
[1768629786985,3.25746375,144.02,143.96,285.04214024]
[1768629787180,3.25746375,144.02,143.96,272.05296076]
[1768629787889,0.05059192,144.0,143.96,272.05296076]
[1768629791387,0.05059192,144.0,143.97,3.23876076]
[1768629798697,3.25746375,144.02,143.97,3.23876076]
[1768629799092,3.25746375,144.02,143.97,3.29031904]
[1768629805797,3.25746375,144.02,143.97,0.05155828]
[1768629806002,3.03261478,144.01,143.96,262.58]
[1768629806200,3.03261478,144.01,143.94,117.19457849]
[1768629806201,3.03261478,144.01,143.94,97.95039901]
[1768629806397,2.98389845,143.99,143.93,16.32594428]
[1768629807493,0.04727708,143.97,143.93,16.32594428]
[1768629808399,0.04727708,143.97,143.93,19.39615478]
[1768629825312,0.04727708,143.97,143.93,282.05615478]
[1768629828914,6.253,144.0,143.94,3.17630643]
[1768629829220,4.85779561,144.02,143.94,3.22344007]
[1768629830317,3.12712625,144.02,143.95,3.17630643]
[1768629830619,4.85779561,144.04,143.95,3.17630643]
[1768629831810,6.252,144.02,143.95,3.17630643]
[1768629832519,6.2515,144.03,143.97,3.31710225]
[1768629833021,6.2515,144.03,143.97,265.97710225]
[1768629834524,6.2515,144.03,143.98,3.27132247]
[1768629838327,3.12712625,144.04,143.98,3.27132247]
[1768629842930,6.2507,144.05,143.98,3.27132247]
[1768629844329,6.2507,144.05,144.0,0.04567543]
[1768629845228,9.39663078,144.05,144.0,0.04567543]
[1768629846732,9.39663078,144.05,144.0,3.3169979]
[1768629846932,3.14593078,144.05,144.0,3.3169979]
[1768629855044,3.14593078,144.08,144.01,3.27132247]
[1768629855246,3.14593078,144.06,144.0,0.04567543]
[1768629855749,3.14593078,144.06,143.99,3.27132247]
[1768629856052,1.73066936,144.05,144.02,0.04520517]
[1768629856353,1.73066936,144.05,143.99,3.27132247]
[1768629856554,0.0513097,144.04,143.99,3.27132247]
[1768629861253,3.19724048,144.04,143.99,3.27132247]
[1768629863156,4.92790984,144.04,143.99,3.27132247]
[1768629868758,3.19724048,144.04,143.99,3.27132247]
[1768629897698,0.0513097,144.04,143.99,3.27132247]
[1768629933236,0.0513097,144.04,143.99,9.52432247]
[1768629933437,9.41040399,144.07,144.0,3.15693963]
[1768629933637,9.41040399,144.07,144.0,3.20099432]
[1768629934337,6.2497,144.07,144.0,3.20099432]
[1768629936837,6.2497,144.07,144.0,9.45369432]
[1768629937034,6.2497,144.07,144.01,3.15693963]
[1768629939236,3.21713407,144.06,144.01,3.15693963]
[1768629939637,6.2497,144.07,144.01,3.15693963]
[1768629946141,6.2502,144.06,144.01,3.15693963]
[1768629946840,6.2502,144.06,144.02,0.04926333]
[1768629948144,6.2507,144.05,144.02,0.04926333]
[1768629948840,6.30307018,144.05,143.99,3.15693963]
[1768629950540,9.52020425,144.05,143.99,3.15693963]
[1768629953951,3.26950425,144.05,143.99,3.15693963]
[1768629959852,3.26950425,144.05,144.0,3.01681221]
[1768629975057,0.05237018,144.05,144.0,3.01681221]
[1768629975261,9.41093677,144.08,144.01,3.06438357]
[1768629975461,3.16153677,144.07,144.01,3.06438357]
[1768629976061,3.16153677,144.07,144.02,3.01681221]
[1768629999390,4.89060176,144.07,144.02,3.01681221]
[1768630003091,3.16153677,144.07,144.02,3.01681221]
[1768630010994,3.16153677,144.07,144.01,0.04757136]
[1768630011298,4.85752515,144.05,144.01,0.04757136]
[1768630011893,4.85752515,144.05,143.98,22.36410117]
[1768630012294,4.85752515,144.05,144.02,0.05037031]
[1768630013797,4.85752515,144.05,143.98,22.36410117]
[1768630014094,4.90131425,144.05,143.98,22.36410117]
[1768630019103,3.20346645,144.04,143.98,22.36410117]
[1768630019493,3.20346645,144.04,143.98,9.37492169]
[1768630021906,3.20346645,144.04,143.98,3.12132169]
[1768630023005,9.45476645,144.04,143.98,3.12132169]
[1768630023202,3.20346645,144.03,143.98,3.12132169]
[1768630025107,0.04529191,144.02,143.98,3.12132169]
[1768630025608,3.24875836,144.02,143.97,131.07735685]
[1768630026610,3.20346645,144.01,143.97,131.07735685]
[1768630027101,3.20346645,144.01,143.96,3.07571479]
[1768630041315,6.29729191,144.02,143.96,3.07571479]
[1768630041614,9.46132094,144.02,143.96,3.07571479]
[1768630042316,3.20932094,144.02,143.96,3.07571479]
[1768630052321,9.46122094,144.02,143.96,3.07571479]
[1768630068937,3.20932094,144.02,143.96,3.07571479]
[1768630069139,3.20932094,144.02,143.95,281.80397948]
[1768630069441,3.20932094,144.02,143.95,284.8823939]
[1768630073743,0.04529191,144.02,143.97,3.02294658]
[1768630074756,0.04529191,144.02,143.97,9.27684658]
[1768630075350,0.04529191,144.02,143.98,3.02294658]
[1768630081058,0.04529191,144.02,143.98,9.27654658]
[1768630081362,3.04396948,144.04,143.98,9.27654658]
[1768630084067,3.04396948,144.04,144.0,0.0465133]
[1768630092256,4.77367334,144.06,144.0,3.06945988]
[1768630092459,3.04396948,144.05,144.0,3.06945988]
[1768630093659,3.04396948,144.05,144.0,0.0465133]
[1768630104178,9.29456948,144.05,144.0,0.0465133]
[1768630104576,3.23577154,144.04,144.0,0.0465133]
[1768630111590,3.23577154,144.04,143.98,6.2536]
[1768630111885,3.08992963,144.02,143.98,6.2536]
[1768630123993,3.08992963,144.02,143.97,262.58]
[1768630124694,3.08992963,144.02,143.97,268.834]
[1768630134103,3.08992963,144.02,143.97,262.58]
[1768630141317,3.08992963,144.02,143.96,9.44336318]
[1768630141521,3.08992963,144.02,143.97,262.6]
[1768630142417,3.08992963,144.02,143.94,3.20801002]
[1768630142418,9.34192963,144.02,143.94,3.20801002]
[1768630142619,2.99729766,144.0,143.94,265.80801002]
[1768630143525,0.04910557,143.98,143.94,265.80801002]
[1768630154726,6.30280557,143.98,143.94,265.80801002]
[1768630156633,2.99729766,143.97,143.93,16.32594428]
[1768630156834,2.99729766,143.97,143.93,16.22997261]
[1768630157025,9.25149766,143.97,143.93,278.86997261]
[1768630159232,6.2542,143.97,143.93,278.86997261]
[1768630169646,6.2542,143.97,143.93,281.95372296]
[1768630181151,9.49866104,143.97,143.93,278.86997261]
[1768630182956,6.2542,143.97,143.93,278.86997261]
[1768630187359,6.2542,143.97,143.93,281.87478042]
[1768630191967,6.2542,143.97,143.94,3.23220749]
[1768630195866,0.04910557,143.98,143.94,3.23220749]
[1768630202873,6.30280557,143.98,143.94,3.23220749]
[1768630206576,6.2546,143.96,143.94,7.49e-06]
[1768630207169,6.2546,143.96,143.93,16.22997261]
[1768630207983,6.30300557,143.98,143.93,16.22997261]
[1768630209982,6.30300557,143.98,143.93,19.4621801]
[1768630214887,6.2542,143.97,143.93,19.4621801]
[1768630217294,6.2546,143.96,143.93,19.4621801]
[1768630224594,6.2546,143.96,143.93,16.22997261]
[1768630225101,6.255,143.95,143.93,4.97687261]
[1768630225898,9.5573578,143.95,143.93,1.6684043]
[1768630226399,6.255,143.95,143.93,1.6684043]
[1768630228400,6.2544,143.97,143.93,1.6684043]
[1768630230408,6.2546,143.96,143.93,1.6684043]
[1768630239011,9.2740109,143.96,143.93,1.6684043]
[1768630244015,6.255,143.95,143.93,1.6684043]
[1768630244621,6.255,143.95,143.93,4.3e-06]
[1768630246020,3.0194109,143.94,143.93,4.3e-06]
[1768630246611,6.255,143.95,143.93,4.3e-06]
[1768630247015,6.30711666,143.95,143.93,4.3e-06]
[1768630258829,9.32961008,143.95,143.93,4.3e-06]
[1768630266632,3.02249342,143.94,143.93,4.3e-06]
[1768630267225,3.02249342,143.94,143.88,3.19703215]
[1768630269039,9.27789342,143.94,143.88,3.19703215]
[1768630279946,3.02249342,143.92,143.86,16.18621163]
[1768630280144,3.02249342,143.92,143.86,3.19703215]
[1768630280647,9.27879342,143.92,143.86,3.19703215]
[1768630280846,0.04493644,143.9,143.86,3.19703215]
[1768630283943,6.2563,143.92,143.88,3.06688398]
[1768630291060,6.2563,143.92,143.87,0.04693281]
[1768630295562,4.73441438,143.93,143.87,0.04693281]
[1768630296862,10.99031438,143.93,143.87,0.04693281]
[1768630298561,3.00311286,143.92,143.87,0.04693281]
[1768630302461,97.2961,143.96,143.87,0.04693281]
[1768630302670,3.00311286,144.01,143.92,3.19271676]
[1768630302869,3.00311286,143.98,143.92,3.19271676]
[1768630303270,3.00311286,143.98,143.92,9.44861676]
[1768630303471,3.00311286,143.98,143.94,0.04624388]
[1768630304674,3.00311286,143.98,143.94,6.30154388]
[1768630307366,6.251,144.04,143.94,6.30154388]
[1768630307560,1.73130152,144.0,143.94,6.30154388]
[1768630307964,1.73130152,144.0,143.94,6.2553]
[1768630308271,1.73130152,144.0,143.96,0.04654454]
[1768630309264,3.00311286,143.99,143.96,0.04654454]
[1768630311068,3.00311286,143.99,143.94,6.2553]
[1768630311473,3.05051327,143.99,143.94,6.2553]
[1768630317881,0.04740041,143.99,143.95,9.27189372]
[1768630320378,3.08792052,144.03,143.96,3.01709372]
[1768630320577,3.08792052,144.03,143.96,3.06492961]